bitfinex/quotes_ETHUSD_20250424
["timestamp","ask_amount","ask_price","bid_price","bid_amount"]
[1745471783293,0.52637657,1774.5,1774.3,6.36935047]
[1745471783793,6.46007204,1774.7,1774.3,6.36935047]
[1745471784292,7.10607924,1774.7,1774.3,6.36935047]
[1745471784491,0.52619599,1774.6,1774.3,6.36935047]
[1745471784821,6.16127644,1774.6,1774.3,0.73354159]
[1745471785198,0.52619599,1774.5,1774.3,6.36954673]
[1745471785790,7.1062662,1774.7,1774.3,6.36954673]
[1745471786192,0.52611708,1774.6,1774.3,6.36954673]
[1745471786793,0.52611708,1774.5,1774.3,6.36954673]
[1745471786995,7.1062662,1774.7,1774.3,6.36954673]
[1745471787908,0.52602353,1774.6,1774.3,6.36954673]
[1745471788505,0.52602353,1774.5,1774.3,6.36954673]
[1745471788707,0.52602353,1774.5,1774.3,0.73354159]
[1745471789028,5.63508312,1774.6,1774.3,6.36956618]
[1745471789228,6.46025946,1774.7,1774.3,6.36956618]
[1745471789729,0.5259596,1774.6,1774.3,6.36956618]
[1745471790135,0.5259596,1774.5,1774.3,6.36956618]
[1745471790295,6.46025946,1774.7,1774.3,6.36956618]
[1745471791127,0.52595877,1774.6,1774.3,6.36956618]
[1745471791707,6.1611317,1774.6,1774.3,0.73354159]
[1745471791900,0.52595877,1774.5,1774.3,6.36956082]
[1745471792301,5.63517293,1774.6,1774.3,6.36956082]
[1745471792603,5.63517293,1774.6,1774.3,0.73354159]
[1745471793335,0.8253,1774.7,1774.4,5.63559656]
[1745471793802,0.52588691,1774.6,1774.4,5.63559656]
[1745471794198,0.8253,1774.7,1774.4,5.63559656]
[1745471795032,0.52587057,1774.6,1774.4,5.63559656]
[1745471795628,0.52587057,1774.5,1774.4,5.63559656]
[1745471795826,0.52587057,1774.5,1774.4,6.87090265]
[1745471796045,0.52587057,1774.5,1774.3,9.11983726]
[1745471796747,6.46028805,1774.7,1774.3,9.11983726]
[1745471797048,6.46028805,1774.7,1774.3,7.12965728]
[1745471797249,0.52593158,1774.6,1774.3,7.12965728]
[1745471797652,0.52593158,1774.6,1774.4,5.63568423]
[1745471797853,0.7529,1774.8,1774.6,5.63504841]
[1745471798019,6.38717277,1774.9,1774.5,6.36877614]
[1745471798218,6.38717277,1774.9,1774.7,0.73354159]
[1745471798414,5.63318454,1775.2,1774.7,6.36813329]
[1745471798415,6.38654769,1775.1,1774.7,6.36813329]
[1745471798619,0.52606083,1775.0,1774.7,6.36813329]
[1745471798822,0.52606083,1775.0,1774.7,7.12843329]
[1745471799125,0.52606083,1774.9,1774.7,7.12843329]
[1745471799742,6.38654769,1775.1,1774.7,7.12843329]
[1745471800521,5.63380634,1775.0,1774.7,1.49384159]
[1745471800722,6.38659265,1775.1,1774.7,1.49384159]
[1745471801541,5.63384148,1775.0,1774.7,1.49384159]
[1745471802953,0.52663536,1774.9,1774.7,1.49384159]
[1745471803263,0.52663536,1774.9,1774.7,3.07019237]
[1745471803422,0.7529,1775.0,1774.4,3.0]
[1745471803626,0.7529,1774.7,1774.4,8.63560201]
[1745471804338,0.7529,1774.7,1774.4,14.27109999]
[1745471804545,5.63429645,1774.9,1774.6,3.0]
[1745471804834,0.52689656,1774.8,1774.6,3.0]
[1745471805356,0.52689656,1774.7,1774.6,3.0]
[1745471805563,0.52689656,1774.7,1774.6,8.63496617]
[1745471805745,0.52689656,1774.7,1774.6,10.211374]
[1745471806136,0.52689656,1774.7,1774.6,4.57640783]
[1745471807159,0.52689656,1774.7,1774.6,3.0]
[1745471808942,0.52689656,1774.7,1774.6,8.63507269]
[1745471813265,0.52689656,1774.7,1774.6,3.0]
[1745471814932,0.52689656,1774.7,1774.3,0.8124]
[1745471815268,5.63551391,1774.5,1774.1,6.44902807]
[1745471815467,0.52689656,1774.4,1774.1,12.08547602]
[1745471815667,0.52689656,1774.4,1774.1,8.03074971]
[1745471815840,6.3995923,1774.6,1774.1,8.03074971]
[1745471816046,6.3995923,1774.6,1774.2,5.63632475]
[1745471816246,5.63543192,1774.5,1774.1,6.44884795]
[1745471816441,6.16257385,1774.5,1774.1,12.08528387]
[1745471816643,6.39887722,1774.8,1774.4,6.36924943]
[1745471816837,5.63478722,1774.7,1774.4,0.73354159]
[1745471817238,0.52701911,1774.6,1774.4,0.73354159]
[1745471817870,5.63478722,1774.7,1774.4,0.73354159]
[1745471818765,5.63508982,1774.6,1774.3,3.8124]
[1745471818969,6.96336054,1774.5,1774.1,6.44892382]
[1745471819266,6.39982193,1774.5,1774.1,6.44897601]
[1745471819570,0.7643,1774.5,1773.9,12.07707507]
[1745471819866,5.63576395,1774.4,1774.0,5.63683436]
[1745471820073,6.16278601,1774.4,1774.0,5.63683436]
[1745471820441,0.52702206,1774.3,1774.0,5.63683436]
[1745471820789,0.52702206,1774.2,1774.0,3.0]
[1745471821080,1.28332206,1774.2,1773.9,6.44969501]
[1745471821441,6.91967505,1774.2,1773.9,0.8124]
[1745471821681,0.52702206,1774.1,1773.8,6.44637747]
[1745471821864,0.52702206,1774.1,1773.7,6.44653285]
[1745471821865,6.16392052,1774.1,1773.7,6.44653285]
[1745471822185,0.52702206,1774.0,1773.7,0.8088]
[1745471822343,0.52702206,1774.0,1773.7,3.8088]
[1745471822542,5.63689846,1774.1,1773.7,3.8088]
[1745471823191,6.3927612,1774.2,1773.8,5.63755666]
[1745471823493,6.16286606,1774.1,1773.8,0.73354159]
[1745471823642,5.63700217,1774.0,1773.8,0.73354159]
[1745471823842,6.1629917,1774.1,1773.8,0.73354159]
[1745471824089,5.63683312,1774.1,1773.8,0.73354159]
[1745471824392,5.63683312,1774.1,1773.7,9.37135719]
[1745471824888,5.63783237,1773.8,1773.6,4.894]
[1745471825054,5.63777432,1773.8,1773.5,1.54234159]
[1745471825263,6.16342501,1773.9,1773.5,4.54234159]
[1745471825576,0.8172,1773.7,1773.1,1.65606115]
[1745471825774,5.63848921,1773.6,1773.2,6.373031]
[1745471826094,6.45527756,1773.7,1773.2,3.73354159]
[1745471826262,0.64553023,1773.6,1773.2,9.37304088]
[1745471826444,6.45529151,1773.7,1773.3,5.63908183]
[1745471826647,0.52514936,1773.6,1773.3,5.63908183]
[1745471826993,6.16340946,1773.6,1773.2,0.73354159]
[1745471827291,5.6382601,1773.6,1773.2,6.37294159]
[1745471828189,6.97999789,1773.7,1773.2,7.76183838]
[1745471828573,6.97999789,1773.7,1773.2,6.37284487]
[1745471828750,0.8172,1773.7,1773.2,6.37284487]
[1745471828951,5.63829052,1773.6,1773.2,6.37284487]
[1745471829165,5.63859554,1773.5,1773.2,0.73354159]
[1745471829479,0.8172,1773.4,1773.2,0.73354159]
[1745471829889,5.63938672,1773.3,1773.1,0.84726115]
[1745471830188,5.63938672,1773.3,1772.9,5.64044949]
[1745471830349,5.63975804,1773.2,1772.8,0.73354159]
[1745471830541,5.63975804,1773.2,1772.8,6.37431623]
[1745471831077,6.45656566,1773.3,1772.9,6.44926803]
[1745471831282,7.16678132,1773.3,1772.9,6.44926803]
[1745471831585,7.16678132,1773.3,1772.9,0.8088]
[1745471831753,7.16678132,1773.3,1772.9,6.44927596]
[1745471833828,5.63970877,1773.2,1772.8,9.37429676]
[1745471834033,5.63970877,1773.2,1772.8,3.73354159]
[1745471834191,6.52011776,1773.2,1772.8,3.73354159]
[1745471834391,0.88040899,1773.2,1772.8,9.37433256]
[1745471834788,5.63998112,1773.1,1772.8,3.0]
[1745471835009,5.63997111,1773.1,1772.7,12.07921573]
[1745471835419,6.52010059,1773.2,1772.7,12.07919941]
[1745471835629,0.65201006,1773.1,1772.7,12.8240688]
[1745471836127,0.65201006,1773.1,1772.8,5.64077404]
[1745471837165,0.8172,1773.3,1772.9,6.37384731]
[1745471837351,0.8172,1773.3,1772.9,6.37377659]
[1745471837533,0.8172,1773.3,1773.0,5.64000418]
[1745471837730,1.46282947,1773.3,1773.0,5.64000418]
[1745471838358,1.46282947,1773.3,1773.0,5.63996427]
[1745471839161,1.46282947,1773.3,1772.9,12.83466642]
[1745471839355,1.46282947,1773.3,1772.9,7.19434372]
[1745471839553,1.46282947,1773.3,1772.9,1.55404159]
[1745471839554,5.63968246,1773.2,1772.9,1.55404159]
[1745471839867,6.34993365,1773.2,1772.9,0.73354159]
[1745471840864,0.71025119,1773.2,1772.9,0.73354159]
[1745471841064,6.34998509,1773.2,1772.9,0.73354159]
[1745471841261,5.64020644,1773.0,1772.7,0.73354159]
[1745471841465,0.803,1772.9,1772.4,1.55514159]
[1745471841664,6.443623,1772.9,1772.5,0.73354159]
[1745471841979,6.443623,1772.9,1772.5,6.3751125]
[1745471842161,6.443623,1772.9,1772.5,12.01664339]
[1745471842363,0.803,1772.9,1772.6,5.64140239]
[1745471842671,0.5230351,1773.0,1772.8,5.64073579]
[1745471842847,0.803,1773.1,1772.8,5.64073579]
[1745471843042,0.803,1773.1,1772.7,7.19609146]
[1745471843247,6.44295379,1773.1,1772.7,7.19609146]
[1745471843733,6.96623704,1773.1,1772.7,12.83698767]
[1745471843953,6.96623704,1773.1,1772.7,7.1960378]
[1745471844457,6.96623704,1773.1,1772.7,7.19600206]
[1745471844695,1.32628325,1773.1,1772.7,12.8368753]
[1745471844891,0.803,1773.1,1772.8,5.64075623]
[1745471845095,0.803,1773.2,1772.9,6.37400437]
[1745471845397,0.52366001,1773.3,1773.0,5.64013682]
[1745471845599,0.52366001,1773.3,1772.9,6.3738118]
[1745471845900,5.63954024,1773.2,1772.9,0.73354159]
[1745471846464,1.32666001,1773.1,1772.9,0.73354159]
[1745471846788,6.96653033,1773.1,1772.7,7.19615209]
[1745471846990,6.44287032,1773.1,1772.7,7.19602445]
[1745471847189,0.803,1773.1,1772.7,0.73354159]
[1745471847390,6.44302416,1773.1,1772.7,6.37464441]
[1745471848402,5.64018274,1773.0,1772.7,0.73354159]
[1745471848587,6.96782397,1773.1,1772.7,0.73354159]
[1745471848759,7.66460637,1773.1,1772.7,0.73354159]
[1745471848965,2.02457521,1773.1,1772.7,6.37444421]
[1745471849165,2.02457521,1773.1,1772.7,0.73354159]
[1745471849467,5.6403089,1773.0,1772.6,6.37486493]
[1745471850577,0.52520652,1772.9,1772.6,6.37486493]
[1745471850908,0.61655154,1772.9,1772.5,3.8216]
[1745471851077,5.64052996,1772.9,1772.5,10.19673149]
[1745471851263,0.52522428,1772.8,1772.5,10.19673149]
[1745471851843,5.64113205,1772.7,1772.5,0.73354159]
[1745471852151,5.64153877,1772.6,1772.3,1.55514159]
[1745471852442,5.64153877,1772.6,1772.3,0.73354159]
[1745471852608,0.803,1772.6,1772.2,1.55514159]
[1745471852933,6.44453784,1772.6,1772.2,7.19780287]
[1745471853140,0.52566877,1772.5,1772.3,5.64237961]
[1745471853638,0.803,1772.6,1772.3,5.64237961]
[1745471853938,1.51712225,1772.6,1772.3,5.64237961]
[1745471854341,1.51712225,1772.6,1772.2,9.37604192]
[1745471854342,7.1585986,1772.6,1772.2,9.37604192]
[1745471854641,1.51712225,1772.6,1772.2,15.01850754]
[1745471854837,5.64095905,1772.8,1772.3,6.39461999]
[1745471854838,0.52605432,1772.5,1772.3,6.39461999]
[1745471855738,0.52605432,1772.6,1772.3,6.39461999]
[1745471856239,5.64122467,1772.7,1772.3,6.39461999]
[1745471857038,5.64143655,1772.6,1772.3,0.7524]
[1745471857242,5.64122467,1772.7,1772.3,0.7524]
[1745471857538,10.53648094,1772.9,1772.2,1.48594159]
[1745471857701,5.64187405,1772.5,1772.2,3.73354159]
[1745471857907,6.4071261,1772.6,1772.2,3.73354159]
[1745471858127,0.64071261,1772.5,1772.3,5.64226113]
[1745471858332,0.7655,1772.6,1772.3,5.64226113]
[1745471859357,0.7655,1772.6,1772.2,10.12842427]
[1745471859358,0.52640111,1772.5,1772.2,10.12842427]
[1745471859658,0.52640111,1772.5,1772.3,5.64234949]
[1745471859858,0.7655,1772.6,1772.3,5.64234949]
[1745471860162,0.7655,1772.6,1772.2,10.12845831]
[1745471860369,7.04763757,1772.6,1772.2,10.12845831]
[1745471860966,1.40618231,1772.6,1772.3,5.64219843]
[1745471861174,11.30220387,1772.9,1772.4,7.12773967]
[1745471861320,5.64084527,1772.8,1772.4,7.12773967]
[1745471861821,5.64079422,1772.8,1772.4,1.48594159]
[1745471862147,0.5263003,1772.7,1772.4,1.48594159]
[1745471862353,0.5263003,1772.7,1772.4,7.12781089]
[1745471862853,0.5263003,1772.6,1772.5,5.64174894]
[1745471863426,0.5263003,1772.6,1772.4,7.12781487]
[1745471863751,5.64080687,1772.8,1772.4,7.12781487]
[1745471864261,0.7655,1772.9,1772.4,2.76294916]
[1745471864550,0.5262809,1772.9,1772.7,6.39348521]
[1745471865259,5.64026336,1773.0,1772.7,0.7524]
[1745471865444,5.64026336,1773.0,1772.6,7.12726531]
[1745471866273,0.7655,1773.1,1772.5,3.0]
[1745471866475,0.8064,1772.8,1772.5,8.64172554]
[1745471866703,0.8064,1772.8,1772.5,14.28324188]
[1745471867304,0.8064,1772.8,1772.5,8.64151634]
[1745471867500,0.8064,1773.0,1772.7,5.64092634]
[1745471868164,0.8064,1773.0,1772.6,7.15283439]
[1745471868364,6.44666568,1773.0,1772.6,7.15283439]
[1745471868604,6.44666568,1773.0,1772.6,7.15280232]
[1745471868765,6.44726346,1772.8,1772.4,5.64190353]
[1745471869995,6.44737982,1772.8,1772.3,3.73354159]
[1745471870197,5.64113297,1772.7,1772.3,9.37573137]
[1745471870499,5.64143072,1772.6,1772.3,0.73354159]
[1745471870702,6.44783072,1772.6,1772.2,6.42054722]
[1745471871280,6.44783072,1772.6,1772.2,12.06309973]
[1745471871494,0.52696369,1772.5,1772.3,5.64237794]
[1745471871687,0.52696369,1772.5,1772.2,6.42054722]
[1745471871906,6.44799848,1772.6,1772.2,6.42054722]
[1745471872077,12.08971548,1772.6,1772.2,6.42054722]
[1745471872399,6.44799848,1772.6,1772.2,6.42054722]
[1745471873586,0.52697349,1772.5,1772.2,0.778]
[1745471873793,0.8064,1772.3,1771.8,7.99959091]
[1745471873979,1.33337349,1772.4,1772.1,5.64299209]
[1745471874197,1.33337349,1772.4,1772.1,6.37653368]
[1745471874604,0.8064,1772.4,1772.1,6.37653368]
[1745471875526,0.8064,1772.4,1772.1,0.73354159]
[1745471875698,6.44860483,1772.4,1772.1,0.73354159]
[1745471876027,6.44860483,1772.4,1772.0,5.6431215]
[1745471876826,0.8064,1772.4,1772.0,5.64309976]
[1745471877151,6.44852307,1772.4,1771.9,9.37702848]
[1745471877357,6.44852307,1772.4,1772.0,5.64308141]
[1745471877654,6.44852307,1772.4,1772.0,11.28619747]
[1745471877951,6.44850999,1772.4,1772.0,5.6431758]
[1745471879052,0.8064,1772.4,1772.0,5.64309646]
[1745471879264,0.8064,1772.4,1772.1,5.64297947]
[1745471879759,6.44801165,1772.6,1772.2,5.64265796]
[1745471880935,5.64192971,1772.5,1772.1,6.37652106]
[1745471881134,0.8064,1772.4,1772.1,6.37652106]
[1745471881465,0.8064,1772.4,1772.1,0.73354159]
[1745471881670,0.8064,1772.4,1772.1,6.37642063]
[1745471882671,5.64163597,1772.6,1772.2,5.64260955]
[1745471882889,6.44803597,1772.6,1772.2,5.64260955]
[1745471883084,5.64194245,1772.5,1772.1,3.73354159]
[1745471883291,0.8064,1772.4,1772.1,9.37653253]
[1745471884777,0.8064,1772.4,1772.1,9.37653253]
[1745471885788,5.64253414,1772.3,1772.1,3.73354159]
[1745471885972,6.44855324,1772.4,1772.1,3.73354159]
[1745471886146,5.64253852,1772.3,1772.1,3.73354159]
[1745471886351,5.64253852,1772.3,1772.0,3.0]
[1745471889003,0.8064,1772.4,1771.9,0.73354159]
[1745471889161,0.8236,1772.1,1771.8,7.22159091]
[1745471889356,6.46672912,1772.1,1771.8,7.22159091]
[1745471889597,0.8236,1772.3,1771.9,0.73354159]
[1745471889805,0.8236,1772.3,1772.0,5.64329357]
[1745471889970,5.64261804,1772.3,1772.1,0.73354159]
[1745471890169,5.64261804,1772.3,1771.9,15.02046069]
[1745471890371,6.4658347,1772.4,1772.0,5.64329637]
[1745471890565,5.64239005,1772.3,1771.9,9.37718688]
[1745471890765,6.46583695,1772.4,1772.0,5.64323016]
[1745471890964,12.10818282,1772.4,1772.0,5.64323016]
[1745471891195,6.46583695,1772.4,1772.0,5.64323016]
[1745471891388,6.46570432,1772.4,1772.0,5.64323016]
[1745471891604,0.8236,1772.4,1772.1,6.3765404]
[1745471891766,0.8236,1772.4,1772.1,6.37632775]
[1745471891965,6.46524909,1772.6,1772.1,6.37638024]
[1745471892165,0.8236,1772.6,1772.4,5.64186445]
[1745471892395,5.7196,1772.7,1772.4,5.64186445]
[1745471892595,5.7196,1772.7,1772.3,6.37569474]
[1745471892774,11.36082868,1772.7,1772.3,6.37569474]
[1745471892991,5.64161927,1772.6,1772.3,3.73354159]
[1745471893190,5.64161927,1772.6,1772.2,0.73354159]
[1745471893506,5.64161927,1772.6,1772.2,9.3762176]
[1745471893706,5.64175464,1772.5,1772.2,3.73354159]
[1745471893887,6.46535464,1772.5,1772.2,3.73354159]
[1745471894284,6.46535464,1772.5,1772.1,5.64286708]
[1745471897107,5.64207051,1772.4,1772.0,4.55754159]
[1745471897313,5.64223832,1772.4,1772.0,10.20085607]
[1745471898214,5.64223832,1772.4,1772.0,15.84397534]
[1745471898411,6.46549626,1772.5,1772.0,15.84377312]
[1745471898710,0.8236,1772.5,1772.2,5.64266846]
[1745471899077,6.46541776,1772.5,1772.1,5.64277895]
[1745471899890,0.8236,1772.5,1772.2,6.37613734]
[1745471900297,0.52763241,1772.4,1772.2,6.37624347]
[1745471900999,0.8236,1772.5,1772.2,6.37624347]
[1745471901201,0.8236,1772.5,1772.2,0.73354159]
[1745471901388,6.46535552,1772.5,1772.2,0.73354159]
[1745471903010,0.8236,1772.5,1772.2,0.73354159]
[1745471903318,5.64162056,1772.6,1772.2,7.96528036]
[1745471904289,6.45597219,1772.5,1772.2,0.73354159]
[1745471906421,0.8142,1772.5,1772.2,0.73354159]
[1745471906722,6.45548342,1772.7,1772.3,5.64227991]
[1745471907517,0.8142,1772.7,1772.4,5.64200897]
[1745471908831,0.8142,1772.8,1772.5,5.64172126]
[1745471909013,0.8142,1773.0,1772.7,5.64103517]
[1745471909330,6.45447578,1773.0,1772.6,9.37473922]
[1745471910525,5.64059512,1772.9,1772.5,5.64159159]
[1745471911431,5.64059512,1772.9,1772.5,11.28310007]
[1745471911727,6.45455094,1773.0,1772.6,5.64141838]
[1745471912104,12.0949698,1773.0,1772.6,5.64141838]
[1745471912724,5.64048574,1772.9,1772.5,8.64155347]
[1745471913103,0.73354159,1773.1,1772.1,0.73354159]
[1745471913293,0.756,1772.7,1772.0,4.893]
[1745471913492,6.39822201,1772.4,1771.9,0.7911]
[1745471913725,5.64257108,1772.3,1771.9,0.7911]
[1745471913910,5.64257108,1772.3,1771.9,6.43474293]
[1745471914123,11.28522757,1772.3,1771.9,0.7911]
[1745471914316,5.64257108,1772.3,1771.9,6.43473701]
[1745471917431,5.64257573,1772.3,1771.9,3.0]
[1745471917628,5.64319508,1772.1,1771.8,7.22159091]
[1745471917828,6.39882418,1772.2,1771.8,7.22159091]
[1745471918132,6.39882418,1772.2,1771.8,13.59895951]
[1745471918996,0.756,1772.2,1771.8,15.52328186]
[1745471919203,0.756,1772.2,1771.9,6.4346448]
[1745471919521,0.756,1772.3,1772.0,0.73354159]
[1745471919724,0.756,1772.3,1772.0,6.37686316]
[1745471920836,5.64189279,1772.5,1772.1,5.64297623]
[1745471921039,5.64220398,1772.4,1772.0,7.6577961]
[1745471921411,6.45640401,1772.3,1772.0,0.73354159]
[1745471924011,0.8138,1772.3,1772.0,6.37673441]
[1745471924212,5.64218887,1772.4,1772.0,6.37672897]
[1745471926642,5.64218887,1772.4,1772.0,0.73354159]
[1745471926845,6.45571641,1772.5,1772.0,0.73354159]
[1745471927028,0.64557164,1772.4,1772.1,5.64295038]
[1745471927356,5.64207953,1772.4,1772.0,6.37664383]
[1745471928158,5.64207953,1772.4,1772.0,0.73354159]
[1745471928159,11.284448,1772.4,1772.0,0.73354159]
[1745471928374,5.64207953,1772.4,1772.0,6.37684098]
[1745471929317,6.42338128,1772.3,1771.9,10.16815387]
[1745471931650,0.7808,1772.3,1772.0,5.64314669]
[1745471931843,6.42302443,1772.4,1772.0,11.28626023]
[1745471932013,12.0653579,1772.4,1772.0,5.64311354]
[1745471932351,5.64238987,1772.3,1771.9,10.16814387]
[1745471932816,6.42304799,1772.4,1771.9,10.16807234]
[1745471933015,12.06541123,1772.4,1772.0,5.64332198]
[1745471933216,6.42304799,1772.4,1772.0,5.64332198]
[1745471934154,12.06540118,1772.4,1772.0,5.64332198]
[1745471934367,5.64240795,1772.3,1771.9,10.16809281]
[1745471935134,5.6427297,1772.2,1771.9,4.52464159]
[1745471935334,5.6427297,1772.2,1771.9,10.16829223]
[1745471935643,5.6425921,1772.3,1771.9,10.16829223]
[1745471936369,5.64284381,1772.2,1771.9,4.52464159]
[1745471936568,5.6425657,1772.3,1771.9,10.1682871]
[1745471938764,6.42355376,1772.2,1771.9,3.0]
[1745471940253,0.7808,1772.2,1771.8,7.22159091]
[1745471940443,5.64359625,1772.0,1771.8,7.22159091]
[1745471941769,5.64259463,1772.3,1771.9,5.64364999]
[1745471941975,5.64259463,1772.3,1771.9,6.39624999]
[1745471942281,11.28523318,1772.3,1771.9,0.7526]
[1745471942486,5.64259463,1772.3,1771.9,0.7526]
[1745471942638,11.28523397,1772.3,1771.9,6.39621564]
[1745471942841,11.28524481,1772.3,1771.9,6.39621564]
[1745471943181,11.28524481,1772.3,1771.9,6.39606487]
[1745471943182,5.64259463,1772.3,1771.9,6.39606487]
[1745471944378,6.28880409,1772.3,1771.9,3.7526]
[1745471944676,0.64620946,1772.3,1771.9,9.39611905]
[1745471944842,6.28870404,1772.3,1771.9,9.39611905]
[1745471945780,0.64620946,1772.3,1772.0,5.64333308]
[1745471946974,6.28859947,1772.3,1772.0,5.64333308]
[1745471947468,6.28859947,1772.3,1771.9,8.64349245]
[1745471947642,0.62885995,1772.2,1771.9,5.64349245]
[1745471948883,5.64258989,1772.3,1771.9,11.28693376]
[1745471949071,5.64258989,1772.3,1771.8,19.24273955]
[1745471949279,5.64255515,1772.3,1771.9,5.643634]
[1745471950211,11.28523569,1772.3,1771.9,5.643634]
[1745471950366,5.64255515,1772.3,1771.8,13.59890908]
[1745471951215,5.64276454,1772.2,1771.8,19.24265113]
[1745471951378,6.46237553,1772.2,1771.8,7.22159091]
[1745471952307,6.46237553,1772.2,1771.8,12.86544253]
[1745471952605,5.64320862,1772.1,1771.8,7.22159091]
[1745471953315,5.64339086,1772.0,1771.8,7.22159091]
[1745471953518,5.64320982,1772.1,1771.8,7.22159091]
[1745471953814,6.58762896,1772.1,1771.8,7.22159091]
[1745471954490,12.2309101,1772.1,1771.8,7.22159091]
[1745471954813,5.64340063,1772.0,1771.8,7.22159091]
[1745471955020,6.46231037,1772.2,1771.8,13.61800443]
[1745471955691,6.46231037,1772.2,1771.8,14.35154602]
[1745471956418,5.64304283,1772.1,1771.8,7.22159091]
[1745471956713,11.28636382,1772.1,1771.8,7.22159091]
[1745471956926,5.64304283,1772.1,1771.8,7.22159091]
[1745471957131,6.4623897,1772.2,1771.8,12.86555652]
[1745471957629,12.10534602,1772.2,1771.8,12.86555652]
[1745471957839,6.4623897,1772.2,1771.8,12.86555652]
[1745471958223,6.4623897,1772.2,1771.8,13.63935652]
[1745471958635,6.4623897,1772.2,1771.8,7.99539091]
[1745471959034,6.4623897,1772.2,1771.8,13.63927495]
[1745471959237,5.6430338,1772.1,1771.8,7.99539091]
[1745471961322,5.64337086,1772.0,1771.8,7.99539091]
[1745471961523,5.64365934,1771.9,1771.8,7.22159091]
[1745471961848,5.64353574,1772.0,1771.8,7.22159091]
[1745471962003,5.64356358,1772.0,1771.8,7.22159091]
[1745471962449,5.64365934,1771.9,1771.8,7.22159091]
[1745471962650,6.42385934,1771.9,1771.8,7.22159091]
[1745471967163,5.64365934,1771.9,1771.8,7.22159091]
[1745471969174,6.42385934,1771.9,1771.8,7.22159091]
[1745471970149,5.64365934,1771.9,1771.8,7.22159091]
[1745471970751,5.64356358,1772.0,1771.8,7.22159091]
[1745471970752,11.28717484,1772.0,1771.8,7.22159091]
[1745471971073,5.64365934,1771.9,1771.8,7.22159091]
[1745471983792,5.64365934,1771.9,1771.8,6.88791791]
[1745471984602,6.43935934,1771.9,1771.8,6.88791791]
[1745471985285,5.64365934,1771.9,1771.8,6.88791791]
[1745471997261,10.53265934,1771.9,1771.8,6.88791791]
[1745472000933,4.889,1771.9,1771.8,6.88791791]
[1745472001142,10.53265934,1771.9,1771.8,6.88791791]
[1745472002108,5.64365934,1771.9,1771.8,6.88791791]
[1745472003100,6.44305934,1771.9,1771.8,6.88791791]
[1745472010902,6.43660857,1771.1,1771.0,0.18267906]
[1745472011108,11.96926943,1771.1,1771.0,0.18267906]
[1745472013118,16.25503666,1771.1,1771.0,1e-08]
[1745472013320,5.64893849,1770.3,1770.1,0.95162176]
[1745472013507,5.6490792,1770.2,1770.1,0.95162176]
[1745472013682,5.64893407,1770.3,1770.1,0.95162176]
[1745472014510,5.6490792,1770.2,1770.1,0.95162176]
[1745472014917,5.6490792,1770.2,1770.1,0.18922176]
[1745472015307,10.53894915,1770.3,1770.1,0.18922176]
[1745472015805,4.89,1770.3,1770.1,0.18922176]
[1745472016009,10.53891171,1770.3,1770.1,0.18922176]
[1745472017023,0.73576723,1770.7,1770.2,6.42612569]
[1745472017024,5.64773448,1770.7,1770.2,6.42612569]
[1745472017233,5.64773448,1770.7,1770.2,7.72616173]
[1745472017387,5.64784342,1770.6,1770.2,7.72616173]
[1745472018118,5.64784342,1770.6,1770.2,2.07723604]
[1745472018437,5.64821438,1770.5,1770.2,0.7772]
[1745472019331,5.64796425,1770.6,1770.2,6.42624831]
[1745472019533,5.64820115,1770.5,1770.2,0.7772]
[1745472020145,4.889,1770.4,1770.1,0.18922176]
[1745472020427,5.6490792,1770.2,1770.1,0.18922176]
[1745472020799,6.13780164,1770.3,1770.1,0.18922176]
[1745472021192,5.6490792,1770.2,1770.1,0.18922176]
[1745472041306,10.5410792,1770.2,1770.1,0.18922176]
[1745472043307,4.892,1770.4,1770.1,0.18922176]
[1745472043533,5.6490792,1770.2,1770.1,0.18922176]
[1745472048154,5.64900943,1770.3,1770.1,0.18922176]
[1745472048326,5.64876009,1770.3,1770.1,0.18922176]
[1745472048652,6.4569792,1770.2,1770.1,0.18922176]
[1745472048852,6.67485275,1770.2,1770.1,0.18922176]
[1745472052464,5.6490792,1770.2,1770.1,0.18922176]
[1745472057289,6.4569792,1770.2,1770.1,0.18922176]
[1745472058478,5.6490792,1770.2,1770.1,0.18922176]
[1745472060255,6.4569792,1770.2,1770.1,0.18922176]
[1745472062575,11.3479792,1770.2,1770.1,0.18922176]
[1745472062886,12.63104643,1770.2,1770.1,1e-08]
[1745472063045,15.63104643,1770.2,1770.1,1e-08]
[1745472064292,15.63104643,1770.2,1770.0,0.06941801]
[1745472064293,10.00459833,1770.1,1770.0,1e-08]
[1745472067776,5.65067525,1769.7,1769.6,0.4050031]
[1745472068178,10.54267525,1769.7,1769.6,0.4050031]
[1745472074302,11.34787525,1769.7,1769.6,0.4050031]
[1745472074902,11.89787525,1769.7,1769.6,0.4050031]
[1745472077601,11.34787525,1769.7,1769.6,0.4050031]
[1745472080588,6.44933332,1769.4,1769.3,0.19576446]
[1745472081875,6.44933332,1769.4,1769.1,7.30716253]
[1745472081876,6.99997221,1769.2,1769.1,1e-08]
[1745472082070,11.89197221,1769.2,1769.1,1e-08]
[1745472082287,12.62773944,1769.2,1769.1,1e-08]
[1745472083610,11.89197221,1769.2,1769.1,1e-08]
[1745472084509,10.54427221,1769.2,1769.1,1e-08]
[1745472085075,11.89197221,1769.2,1769.1,1e-08]
[1745472085780,6.20450947,1768.5,1768.4,0.20230716]
[1745472085992,5.65450947,1768.5,1768.4,0.20230716]
[1745472086192,10.54650947,1768.5,1768.4,0.96830716]
[1745472086683,10.54650947,1768.5,1768.4,0.20230716]
[1745472087815,4.892,1768.5,1768.4,0.96830716]
[1745472089382,10.54650947,1768.5,1768.4,0.96830716]
[1745472089628,4.892,1768.5,1768.4,0.96830716]
[1745472090320,5.65439194,1768.6,1768.4,0.96830716]
[1745472090486,4.894,1768.5,1768.4,0.96830716]
[1745472090686,5.65410226,1768.7,1768.4,0.96830716]
[1745472091024,10.54835564,1768.6,1768.4,0.96830716]
[1745472091219,4.894,1768.6,1768.4,0.96830716]
[1745472091917,6.26104919,1768.8,1768.4,0.96830716]
[1745472091918,11.30689754,1768.9,1768.6,0.8038]
[1745472092089,10.54761651,1768.8,1768.6,0.8038]
[1745472092717,5.65311039,1769.0,1768.6,0.8038]
[1745472092890,4.894,1768.9,1768.6,0.8038]
[1745472093415,10.54723302,1768.9,1768.6,0.8038]
[1745472094515,5.65315266,1769.0,1768.6,0.8038]
[1745472094723,4.894,1768.9,1768.6,0.8038]
[1745472095220,10.54723299,1768.9,1768.6,0.8038]
[1745472096005,4.894,1768.9,1768.6,0.8038]
[1745472096437,10.54724305,1768.9,1768.6,0.8038]
[1745472096842,4.894,1768.9,1768.6,0.8038]
[1745472097039,10.54723357,1768.9,1768.6,0.8038]
[1745472098234,5.65355862,1768.8,1768.6,0.8038]
[1745472098605,5.65387007,1768.7,1768.6,0.8038]
[1745472098811,5.65387007,1768.7,1768.4,1.00610716]